[Event "Titled Tuesday Blitz June 14 Late 2022"]
[White "Al-Tarboush, Ward"]
[Black "Pace, Christopher"]
[WhiteFideId "7601450"]
[BlackFideId "2610167"]
[WhiteElo "2249"]
[BlackElo "2432"]
[Result "1-0"]
[Round "10"]
[TimeControl "180+1"]
[Date "2022.06.14"]
[WhiteClock "0:00:04"]
[BlackClock "0:00:40"]

1. e4 {[%clk 0:02:50]}  e5 {[%clk 0:02:57]} 2. Nf3 {[%clk 0:02:50]}  Nc6 {[%clk 0:02:54]} 3. Bb5 {[%clk 0:02:51]}  Nf6 {[%clk 0:02:54]} 4. O-O {[%clk 0:02:50]}  Nxe4 {[%clk 0:02:54]} 5. d4 {[%clk 0:02:50]}  Nd6 {[%clk 0:02:54]} 6. Bxc6 {[%clk 0:02:51]}  dxc6 {[%clk 0:02:55]} 7. dxe5 {[%clk 0:02:51]}  Nf5 {[%clk 0:02:55]} 8. Qxd8+ {[%clk 0:02:52]}  Kxd8 {[%clk 0:02:56]} 9. Nc3 {[%clk 0:02:53]}  Ke8 {[%clk 0:02:57]} 10. h3 {[%clk 0:02:48]}  h5 {[%clk 0:02:57]} 11. Bg5 {[%clk 0:02:43]}  Be7 {[%clk 0:02:51]} 12. Rad1 {[%clk 0:02:35]}  Be6 {[%clk 0:02:46]} 13. Rfe1 {[%clk 0:02:33]}  Bxg5 {[%clk 0:02:46]} 14. Nxg5 {[%clk 0:02:34]}  Rh6 {[%clk 0:02:46]} 15. f4 {[%clk 0:02:23]}  h4 {[%clk 0:02:36]} 16. Nce4 {[%clk 0:02:16]}  Bd5 {[%clk 0:02:29]} 17. b3 {[%clk 0:02:14]}  Ne7 {[%clk 0:01:55]} 18. c4 {[%clk 0:02:12]}  Bxe4 {[%clk 0:01:48]} 19. Rxe4 {[%clk 0:02:11]}  Nf5 {[%clk 0:01:37]} 20. e6 {[%clk 0:02:02]}  f6 {[%clk 0:01:37]} 21. Nf7 {[%clk 0:01:45]}  Rg6 {[%clk 0:01:38]} 22. Rd7 {[%clk 0:01:40]}  Rc8 {[%clk 0:01:38]} 23. c5 {[%clk 0:01:32]}  Rg3 {[%clk 0:01:35]} 24. Kf2 {[%clk 0:00:38]}  Rc3 {[%clk 0:01:34]} 25. Rc4 {[%clk 0:00:38]}  Rg3 {[%clk 0:01:12]} 26. Rc2 {[%clk 0:00:25]}  Ne3 {[%clk 0:01:04]} 27. Rcd2 {[%clk 0:00:25]}  Nd5 {[%clk 0:00:58]} 28. f5 {[%clk 0:00:17]}  Rc3 {[%clk 0:00:56]} 29. b4 {[%clk 0:00:17]}  Rc4 {[%clk 0:00:54]} 30. Nd6+ {[%clk 0:00:10]}  cxd6 {[%clk 0:00:52]} 31. cxd6 {[%clk 0:00:11]}  Rf4+ {[%clk 0:00:51]} 32. Kg1 {[%clk 0:00:10]}  Ne3 {[%clk 0:00:46]} 33. Rxg7 {[%clk 0:00:06]}  Kf8 {[%clk 0:00:42]} 34. Rf7+ {[%clk 0:00:06]}  Ke8 {[%clk 0:00:42]} 35. d7+ {[%clk 0:00:05]}  Kd8 {[%clk 0:00:42]} 36. Rf8+ {[%clk 0:00:06]}  Ke7 {[%clk 0:00:42]} 37. Rf7+ {[%clk 0:00:04]}  Kd8 {[%clk 0:00:40]} 38. Rf8+ {[%clk 0:00:05]}  Ke7 {[%clk 0:00:40]} 39. dxc8=Q {[%clk 0:00:04]} 1-0


[Site "https://www.chess.com"]

[Event "Titled Tuesday Blitz June 14 Late 2022"]
[White "Bolanos, Fernando"]
[Black "Baches Garcia, Guillermo"]
[WhiteFideId "3304094"]
[BlackFideId "2209764"]
[WhiteElo "2048"]
[BlackElo "2489"]
[Result "1-0"]
[Round "10"]
[TimeControl "180+1"]
[Date "2022.06.15"]
[WhiteClock "0:00:06"]
[BlackClock "0:00:07"]

1. e4 {[%clk 0:03:00]}  c5 {[%clk 0:02:57]} 2. Nf3 {[%clk 0:03:01]}  d6 {[%clk 0:02:57]} 3. d4 {[%clk 0:03:00]}  cxd4 {[%clk 0:02:58]} 4. Nxd4 {[%clk 0:03:01]}  Nf6 {[%clk 0:02:58]} 5. Nc3 {[%clk 0:03:01]}  Nc6 {[%clk 0:02:59]} 6. Be3 {[%clk 0:02:59]}  Ng4 {[%clk 0:02:59]} 7. Nxc6 {[%clk 0:02:59]}  bxc6 {[%clk 0:02:58]} 8. Bf4 {[%clk 0:02:58]}  Qb6 {[%clk 0:02:49]} 9. Qd2 {[%clk 0:02:46]}  e5 {[%clk 0:02:47]} 10. Bg5 {[%clk 0:02:39]}  h6 {[%clk 0:02:18]} 11. Bh4 {[%clk 0:02:38]}  g5 {[%clk 0:02:11]} 12. Bg3 {[%clk 0:02:19]}  Qxb2 {[%clk 0:02:11]} 13. Rb1 {[%clk 0:02:18]}  Qa3 {[%clk 0:02:11]} 14. h4 {[%clk 0:02:12]}  Be7 {[%clk 0:02:02]} 15. f3 {[%clk 0:01:41]}  gxh4 {[%clk 0:01:49]} 16. Bxh4 {[%clk 0:01:38]}  Bxh4+ {[%clk 0:01:47]} 17. Rxh4 {[%clk 0:01:39]}  Nf6 {[%clk 0:01:44]} 18. Rb3 {[%clk 0:01:38]}  Qc5 {[%clk 0:01:38]} 19. Rxh6 {[%clk 0:01:33]}  Rxh6 {[%clk 0:01:27]} 20. Qxh6 {[%clk 0:01:34]}  Ke7 {[%clk 0:01:23]} 21. Qg5 {[%clk 0:01:10]}  a5 {[%clk 0:01:09]} 22. Na4 {[%clk 0:00:32]}  Qxc2 {[%clk 0:00:43]} 23. Nb6 {[%clk 0:00:32]}  Be6 {[%clk 0:00:30]} 24. Nxa8 {[%clk 0:00:27]}  Bxb3 {[%clk 0:00:29]} 25. axb3 {[%clk 0:00:26]}  Qxb3 {[%clk 0:00:29]} 26. Nc7 {[%clk 0:00:18]}  a4 {[%clk 0:00:27]} 27. Ne8 {[%clk 0:00:18]}  Kxe8 {[%clk 0:00:19]} 28. Qxf6 {[%clk 0:00:18]}  a3 {[%clk 0:00:18]} 29. Qxd6 {[%clk 0:00:19]}  Qc3+ {[%clk 0:00:09]} 30. Kf2 {[%clk 0:00:13]}  Qb2+ {[%clk 0:00:09]} 31. Kg3 {[%clk 0:00:12]}  a2 {[%clk 0:00:09]} 32. Qxc6+ {[%clk 0:00:03]}  Kf8 {[%clk 0:00:09]} 33. Qc8+ {[%clk 0:00:04]}  Kg7 {[%clk 0:00:09]} 34. Qg4+ {[%clk 0:00:04]}  Kf8 {[%clk 0:00:10]} 35. Qc8+ {[%clk 0:00:05]}  Ke7 {[%clk 0:00:10]} 36. Qc7+ {[%clk 0:00:04]}  Kf6 {[%clk 0:00:10]} 37. Bc4 {[%clk 0:00:05]}  a1=Q {[%clk 0:00:06]} 38. Qxf7+ {[%clk 0:00:05]}  Kg5 {[%clk 0:00:07]} 39. Qg7+ {[%clk 0:00:05]}  Kh5 {[%clk 0:00:07]} 40. Bf7# {[%clk 0:00:06]} 1-0


[Site "https://www.chess.com"]

[Event "Titled Tuesday Blitz June 14 Late 2022"]
[White "Bortnyk, Olexandr"]
[Black "Svane, Rasmus"]
[WhiteFideId "14120828"]
[BlackFideId "4657101"]
[WhiteElo "2723"]
[BlackElo "2674"]
[Result "1-0"]
[Round "10"]
[TimeControl "180+1"]
[Date "2022.06.14"]
[WhiteClock "0:00:01"]
[BlackClock "0:00:02"]

1. d4 {[%clk 0:03:00]}  Nf6 {[%clk 0:02:57]} 2. Nc3 {[%clk 0:03:00]}  d5 {[%clk 0:02:57]} 3. Bf4 {[%clk 0:02:59]}  c5 {[%clk 0:02:58]} 4. e4 {[%clk 0:02:59]}  dxe4 {[%clk 0:02:59]} 5. dxc5 {[%clk 0:02:58]}  Qxd1+ {[%clk 0:02:54]} 6. Rxd1 {[%clk 0:02:57]}  a6 {[%clk 0:02:37]} 7. Na4 {[%clk 0:02:53]}  Nbd7 {[%clk 0:02:36]} 8. b4 {[%clk 0:02:52]}  e6 {[%clk 0:02:33]} 9. Bc4 {[%clk 0:02:50]}  a5 {[%clk 0:02:20]} 10. Bb5 {[%clk 0:01:12]}  axb4 {[%clk 0:02:20]} 11. Ne2 {[%clk 0:00:35]}  Ra5 {[%clk 0:01:45]} 12. c4 {[%clk 0:00:31]}  bxc3 {[%clk 0:01:39]} 13. Nexc3 {[%clk 0:00:32]}  Nd5 {[%clk 0:01:35]} 14. Bd2 {[%clk 0:00:24]}  Nxc3 {[%clk 0:01:33]} 15. Nxc3 {[%clk 0:00:24]}  f5 {[%clk 0:00:31]} 16. a4 {[%clk 0:00:24]}  Ra8 {[%clk 0:00:24]} 17. c6 {[%clk 0:00:21]}  bxc6 {[%clk 0:00:24]} 18. Bxc6 {[%clk 0:00:22]}  Rb8 {[%clk 0:00:18]} 19. O-O {[%clk 0:00:22]}  Ke7 {[%clk 0:00:16]} 20. Bf4 {[%clk 0:00:14]}  Rb3 {[%clk 0:00:16]} 21. Nb5 {[%clk 0:00:11]}  Nf6 {[%clk 0:00:16]} 22. a5 {[%clk 0:00:09]}  Ba6 {[%clk 0:00:14]} 23. Nc7 {[%clk 0:00:08]}  Bxf1 {[%clk 0:00:13]} 24. Kxf1 {[%clk 0:00:06]}  Ra3 {[%clk 0:00:07]} 25. Bd6+ {[%clk 0:00:06]}  Kf7 {[%clk 0:00:08]} 26. Bxa3 {[%clk 0:00:07]}  Bxa3 {[%clk 0:00:09]} 27. a6 {[%clk 0:00:06]}  Bc5 {[%clk 0:00:09]} 28. Nb5 {[%clk 0:00:06]}  Rc8 {[%clk 0:00:08]} 29. Bb7 {[%clk 0:00:06]}  Rb8 {[%clk 0:00:08]} 30. Rc1 {[%clk 0:00:06]}  Bb6 {[%clk 0:00:04]} 31. Rc8 {[%clk 0:00:03]}  Rxc8 {[%clk 0:00:03]} 32. Bxc8 {[%clk 0:00:03]}  Nd5 {[%clk 0:00:03]} 33. a7 {[%clk 0:00:03]}  Bxa7 {[%clk 0:00:03]} 34. Nxa7 {[%clk 0:00:04]}  Nb6 {[%clk 0:00:03]} 35. Ba6 {[%clk 0:00:03]}  e5 {[%clk 0:00:04]} 36. Nc8 {[%clk 0:00:02]}  Nd5 {[%clk 0:00:03]} 37. Bc4 {[%clk 0:00:02]}  Ke6 {[%clk 0:00:02]} 38. Nb6 {[%clk 0:00:01]} 1-0


[Site "https://www.chess.com"]

[Event "Titled Tuesday Blitz June 14 Late 2022"]
[White "Burke, Paul"]
[Black "Gomez Dieguez, David"]
[WhiteFideId "2605767"]
[BlackFideId "22223630"]
[WhiteElo "1939"]
[BlackElo "2117"]
[Result "1-0"]
[Round "10"]
[TimeControl "180+1"]
[Date "2022.06.15"]
[WhiteClock "0:00:05"]
[BlackClock "0:00:01"]

1. e4 {[%clk 0:03:00]}  c6 {[%clk 0:02:59]} 2. d4 {[%clk 0:03:00]}  d5 {[%clk 0:03:00]} 3. exd5 {[%clk 0:03:00]}  cxd5 {[%clk 0:03:01]} 4. c4 {[%clk 0:03:00]}  Nf6 {[%clk 0:03:02]} 5. Nc3 {[%clk 0:03:00]}  Nc6 {[%clk 0:03:02]} 6. Nf3 {[%clk 0:03:00]}  a6 {[%clk 0:03:02]} 7. Be2 {[%clk 0:03:00]}  Bf5 {[%clk 0:03:01]} 8. O-O {[%clk 0:02:59]}  e6 {[%clk 0:03:00]} 9. c5 {[%clk 0:02:59]}  Be7 {[%clk 0:02:58]} 10. a3 {[%clk 0:02:59]}  Ne4 {[%clk 0:02:53]} 11. Be3 {[%clk 0:02:40]}  Nxc3 {[%clk 0:02:51]} 12. bxc3 {[%clk 0:02:40]}  O-O {[%clk 0:02:51]} 13. c4 {[%clk 0:02:37]}  dxc4 {[%clk 0:02:19]} 14. Bxc4 {[%clk 0:02:36]}  Bf6 {[%clk 0:02:11]} 15. Rc1 {[%clk 0:02:27]}  Bg4 {[%clk 0:02:06]} 16. Be2 {[%clk 0:02:25]}  Qd5 {[%clk 0:01:53]} 17. h3 {[%clk 0:02:20]}  Bh5 {[%clk 0:01:48]} 18. g4 {[%clk 0:02:08]}  Bg6 {[%clk 0:01:48]} 19. Bc4 {[%clk 0:01:59]}  Qd7 {[%clk 0:01:36]} 20. d5 {[%clk 0:01:51]}  exd5 {[%clk 0:01:31]} 21. Qxd5 {[%clk 0:01:42]}  Rad8 {[%clk 0:01:28]} 22. Qxd7 {[%clk 0:01:35]}  Rxd7 {[%clk 0:01:28]} 23. Rfd1 {[%clk 0:01:31]}  Rfd8 {[%clk 0:01:22]} 24. Rxd7 {[%clk 0:00:47]}  Rxd7 {[%clk 0:01:23]} 25. g5 {[%clk 0:00:42]}  Bb2 {[%clk 0:01:23]} 26. Re1 {[%clk 0:00:37]}  Kf8 {[%clk 0:01:11]} 27. Bc1 {[%clk 0:00:35]}  Bxc1 {[%clk 0:01:00]} 28. Rxc1 {[%clk 0:00:35]}  Be4 {[%clk 0:00:57]} 29. Be2 {[%clk 0:00:28]}  Rd5 {[%clk 0:00:37]} 30. Kf1 {[%clk 0:00:20]}  Ke7 {[%clk 0:00:34]} 31. Ke1 {[%clk 0:00:20]}  Nd8 {[%clk 0:00:27]} 32. h4 {[%clk 0:00:17]}  Kd7 {[%clk 0:00:22]} 33. Nd2 {[%clk 0:00:15]}  Bf5 {[%clk 0:00:18]} 34. Bf3 {[%clk 0:00:13]}  Re5+ {[%clk 0:00:18]} 35. Kd1 {[%clk 0:00:12]}  Nc6 {[%clk 0:00:19]} 36. Nc4 {[%clk 0:00:10]}  Re7 {[%clk 0:00:15]} 37. Nb6+ {[%clk 0:00:10]}  Ke8 {[%clk 0:00:12]} 38. Bxc6+ {[%clk 0:00:10]}  bxc6 {[%clk 0:00:11]} 39. Rc3 {[%clk 0:00:10]}  Bg4+ {[%clk 0:00:09]} 40. Kd2 {[%clk 0:00:09]}  Re2+ {[%clk 0:00:09]} 41. Kd3 {[%clk 0:00:09]}  Rxf2 {[%clk 0:00:09]} 42. Ke3 {[%clk 0:00:08]}  Rf3+ {[%clk 0:00:09]} 43. Kd4 {[%clk 0:00:07]}  Rf4+ {[%clk 0:00:08]} 44. Ke3 {[%clk 0:00:07]}  Rf3+ {[%clk 0:00:05]} 45. Kd4 {[%clk 0:00:07]}  Rf5 {[%clk 0:00:03]} 46. Re3+ {[%clk 0:00:06]}  Kd8 {[%clk 0:00:01]} 47. Kc4 {[%clk 0:00:05]} 1-0


[Site "https://www.chess.com"]

[Event "Titled Tuesday Blitz June 14 Late 2022"]
[White "Colpe, Malte"]
[Black "Remolar Gallen, Jose"]
[WhiteFideId "24623075"]
[BlackFideId "2215187"]
[WhiteElo "2328"]
[BlackElo "2205"]
[Result "0-1"]
[Round "10"]
[TimeControl "180+1"]
[Date "2022.06.15"]
[WhiteClock "0:00:35"]
[BlackClock "0:00:09"]

1. e4 {[%clk 0:03:00]}  c5 {[%clk 0:02:59]} 2. Nc3 {[%clk 0:03:00]}  d6 {[%clk 0:02:59]} 3. Nf3 {[%clk 0:02:59]}  Nf6 {[%clk 0:03:00]} 4. d4 {[%clk 0:02:58]}  cxd4 {[%clk 0:03:00]} 5. Nxd4 {[%clk 0:02:58]}  a6 {[%clk 0:03:00]} 6. h3 {[%clk 0:02:58]}  e5 {[%clk 0:03:00]} 7. Nde2 {[%clk 0:02:57]}  h5 {[%clk 0:03:00]} 8. g3 {[%clk 0:02:56]}  Be7 {[%clk 0:03:00]} 9. Bg2 {[%clk 0:02:54]}  Be6 {[%clk 0:02:47]} 10. Nd5 {[%clk 0:02:53]}  Nxd5 {[%clk 0:02:35]} 11. exd5 {[%clk 0:02:53]}  Bf5 {[%clk 0:02:36]} 12. c4 {[%clk 0:02:47]}  Nd7 {[%clk 0:02:33]} 13. O-O {[%clk 0:02:43]}  b5 {[%clk 0:02:27]} 14. cxb5 {[%clk 0:02:37]}  axb5 {[%clk 0:02:28]} 15. Nc3 {[%clk 0:02:37]}  b4 {[%clk 0:02:25]} 16. Ne4 {[%clk 0:02:38]}  Bg6 {[%clk 0:02:19]} 17. h4 {[%clk 0:02:25]}  Nf6 {[%clk 0:01:52]} 18. Ng5 {[%clk 0:02:20]}  O-O {[%clk 0:01:50]} 19. Qb3 {[%clk 0:02:01]}  Qb8 {[%clk 0:01:39]} 20. Bd2 {[%clk 0:01:58]}  Rc8 {[%clk 0:01:30]} 21. Qxb4 {[%clk 0:01:50]}  Bd3 {[%clk 0:00:50]} 22. Rfe1 {[%clk 0:01:35]}  Qxb4 {[%clk 0:00:21]} 23. Bxb4 {[%clk 0:01:36]}  Bc4 {[%clk 0:00:21]} 24. Re2 {[%clk 0:01:21]}  Bxe2 {[%clk 0:00:20]} 25. a4 {[%clk 0:00:55]}  Rc4 {[%clk 0:00:15]} 26. Ba3 {[%clk 0:00:51]}  Rcxa4 {[%clk 0:00:14]} 27. Re1 {[%clk 0:00:50]}  Bc4 {[%clk 0:00:14]} 28. Rd1 {[%clk 0:00:51]}  R4a5 {[%clk 0:00:13]} 29. Rc1 {[%clk 0:00:48]}  Bxd5 {[%clk 0:00:12]} 30. Bf1 {[%clk 0:00:49]}  Nd7 {[%clk 0:00:08]} 31. Rc7 {[%clk 0:00:49]}  Bxg5 {[%clk 0:00:08]} 32. hxg5 {[%clk 0:00:46]}  Nc5 {[%clk 0:00:07]} 33. Bb4 {[%clk 0:00:40]}  R5a7 {[%clk 0:00:07]} 34. Rxc5 {[%clk 0:00:35]}  dxc5 {[%clk 0:00:07]} 35. Bxc5 {[%clk 0:00:36]}  Rb7 {[%clk 0:00:07]} 36. b4 {[%clk 0:00:36]}  Be6 {[%clk 0:00:07]} 37. f4 {[%clk 0:00:37]}  Rbb8 {[%clk 0:00:08]} 38. Bg2 {[%clk 0:00:37]}  Ra1+ {[%clk 0:00:07]} 39. Kf2 {[%clk 0:00:37]}  Ra2+ {[%clk 0:00:08]} 40. Kg1 {[%clk 0:00:38]}  Rd8 {[%clk 0:00:09]} 41. Bf3 {[%clk 0:00:37]}  Rd3 {[%clk 0:00:08]} 42. Bxh5 {[%clk 0:00:36]}  Rxg3+ {[%clk 0:00:08]} 43. Kf1 {[%clk 0:00:37]}  Bc4+ {[%clk 0:00:08]} 44. Ke1 {[%clk 0:00:37]}  Ra1+ {[%clk 0:00:08]} 45. Kd2 {[%clk 0:00:37]}  Rh3 {[%clk 0:00:08]} 46. Bg4 {[%clk 0:00:37]}  Rh2+ {[%clk 0:00:08]} 47. Kc3 {[%clk 0:00:37]}  Be6 {[%clk 0:00:08]} 48. f5 {[%clk 0:00:37]}  Bd5 {[%clk 0:00:09]} 49. f6 {[%clk 0:00:35]}  Ra3# {[%clk 0:00:09]} 0-1


[Site "https://www.chess.com"]

[Event "Titled Tuesday Blitz June 14 Late 2022"]
[White "Curtis, John"]
[Black "Zherebtsova, Alexandra"]
[WhiteFideId "3200256"]
[BlackFideId "24129518"]
[WhiteElo "2203"]
[BlackElo "2025"]
[Result "1/2-1/2"]
[Round "10"]
[TimeControl "180+1"]
[Date "2022.06.15"]
[WhiteClock "0:00:29"]
[BlackClock "0:00:03"]

1. e4 {[%clk 0:03:00]}  e5 {[%clk 0:02:55]} 2. Nf3 {[%clk 0:03:00]}  Nc6 {[%clk 0:02:51]} 3. Bb5 {[%clk 0:03:00]}  a6 {[%clk 0:02:51]} 4. Bxc6 {[%clk 0:03:00]}  dxc6 {[%clk 0:02:50]} 5. O-O {[%clk 0:03:01]}  Ne7 {[%clk 0:02:50]} 6. Nxe5 {[%clk 0:03:00]}  Qd4 {[%clk 0:02:49]} 7. Nf3 {[%clk 0:02:59]}  Qxe4 {[%clk 0:02:49]} 8. Re1 {[%clk 0:02:59]}  Qg6 {[%clk 0:02:44]} 9. Ne5 {[%clk 0:02:51]}  Qf5 {[%clk 0:02:43]} 10. d4 {[%clk 0:02:51]}  Be6 {[%clk 0:02:39]} 11. Re3 {[%clk 0:02:40]}  O-O-O {[%clk 0:02:16]} 12. c3 {[%clk 0:02:40]}  h6 {[%clk 0:02:04]} 13. Qe1 {[%clk 0:02:38]}  g5 {[%clk 0:01:57]} 14. Nd2 {[%clk 0:02:27]}  g4 {[%clk 0:01:34]} 15. Nf1 {[%clk 0:02:26]}  Nd5 {[%clk 0:01:32]} 16. Rg3 {[%clk 0:02:12]}  h5 {[%clk 0:01:29]} 17. Ne3 {[%clk 0:02:10]}  Nxe3 {[%clk 0:01:28]} 18. Rxe3 {[%clk 0:02:10]}  Bd6 {[%clk 0:01:16]} 19. b4 {[%clk 0:02:08]}  h4 {[%clk 0:01:11]} 20. c4 {[%clk 0:01:50]}  Bxe5 {[%clk 0:01:04]} 21. Rxe5 {[%clk 0:01:47]}  Qd3 {[%clk 0:01:01]} 22. Bg5 {[%clk 0:01:33]}  Rxd4 {[%clk 0:00:56]} 23. b5 {[%clk 0:01:12]}  cxb5 {[%clk 0:00:54]} 24. cxb5 {[%clk 0:01:11]}  axb5 {[%clk 0:00:53]} 25. Bf6 {[%clk 0:01:10]}  Re8 {[%clk 0:00:52]} 26. Bxh4 {[%clk 0:01:09]}  Rd5 {[%clk 0:00:41]} 27. Re4 {[%clk 0:01:03]}  Qd2 {[%clk 0:00:39]} 28. Rxg4 {[%clk 0:00:48]}  Qxe1+ {[%clk 0:00:27]} 29. Rxe1 {[%clk 0:00:47]}  Rd2 {[%clk 0:00:24]} 30. a3 {[%clk 0:00:43]}  Rh8 {[%clk 0:00:19]} 31. Bg5 {[%clk 0:00:40]}  Rxf2 {[%clk 0:00:16]} 32. Kxf2 {[%clk 0:00:36]}  Bxg4 {[%clk 0:00:16]} 33. Re7 {[%clk 0:00:35]}  Be6 {[%clk 0:00:15]} 34. h3 {[%clk 0:00:35]}  b6 {[%clk 0:00:10]} 35. Bf4 {[%clk 0:00:35]}  c5 {[%clk 0:00:10]} 36. Rc7+ {[%clk 0:00:34]}  Kd8 {[%clk 0:00:10]} 37. Rb7 {[%clk 0:00:35]}  Rh5 {[%clk 0:00:08]} 38. Rxb6 {[%clk 0:00:34]}  c4 {[%clk 0:00:09]} 39. g4 {[%clk 0:00:31]}  Rxh3 {[%clk 0:00:08]} 40. Rxb5 {[%clk 0:00:31]}  Rxa3 {[%clk 0:00:08]} 41. Rc5 {[%clk 0:00:31]}  Ra2+ {[%clk 0:00:08]} 42. Kg3 {[%clk 0:00:31]}  Ra3+ {[%clk 0:00:08]} 43. Kh4 {[%clk 0:00:32]}  Ke7 {[%clk 0:00:08]} 44. g5 {[%clk 0:00:31]}  Kf8 {[%clk 0:00:08]} 45. Be5 {[%clk 0:00:31]}  Ke7 {[%clk 0:00:08]} 46. g6 {[%clk 0:00:31]}  fxg6 {[%clk 0:00:08]} 47. Kg5 {[%clk 0:00:31]}  Rf3 {[%clk 0:00:07]} 48. Rc7+ {[%clk 0:00:31]}  Kd8 {[%clk 0:00:07]} 49. Rc5 {[%clk 0:00:31]}  c3 {[%clk 0:00:04]} 50. Bxc3 {[%clk 0:00:29]}  Rf5+ {[%clk 0:00:03]} 51. Kxg6 {[%clk 0:00:30]}  Rxc5 {[%clk 0:00:02]} 52. Bd4 {[%clk 0:00:29]}  Bb3 {[%clk 0:00:03]} 53. Bxc5 {[%clk 0:00:29]} 1/2-1/2


[Site "https://www.chess.com"]

[Event "Titled Tuesday Blitz June 14 Late 2022"]
[White "De La Colina, Nicolas"]
[Black "Fidalgo, Andre Neves"]
[WhiteFideId "30946921"]
[BlackFideId "1933620"]
[WhiteElo "2046"]
[BlackElo "2023"]
[Result "0-1"]
[Round "10"]
[TimeControl "180+1"]
[Date "2022.06.15"]
[WhiteClock "0:00:10"]
[BlackClock "0:00:37"]

1. c4 {[%clk 0:03:00]}  Nf6 {[%clk 0:02:58]} 2. Nc3 {[%clk 0:03:00]}  g6 {[%clk 0:02:54]} 3. e4 {[%clk 0:03:00]}  d6 {[%clk 0:02:54]} 4. g3 {[%clk 0:03:00]}  Bg7 {[%clk 0:02:54]} 5. Bg2 {[%clk 0:03:01]}  O-O {[%clk 0:02:55]} 6. d3 {[%clk 0:03:01]}  e5 {[%clk 0:02:51]} 7. Nge2 {[%clk 0:03:02]}  Nbd7 {[%clk 0:02:50]} 8. O-O {[%clk 0:03:02]}  c6 {[%clk 0:02:50]} 9. Rb1 {[%clk 0:02:55]}  a5 {[%clk 0:02:49]} 10. a3 {[%clk 0:02:55]}  h6 {[%clk 0:02:44]} 11. b4 {[%clk 0:02:50]}  axb4 {[%clk 0:02:43]} 12. axb4 {[%clk 0:02:51]}  Kh7 {[%clk 0:02:44]} 13. h3 {[%clk 0:02:51]}  Nh5 {[%clk 0:02:36]} 14. g4 {[%clk 0:02:40]}  Nf4 {[%clk 0:02:27]} 15. Nxf4 {[%clk 0:02:38]}  exf4 {[%clk 0:02:27]} 16. Ne2 {[%clk 0:02:35]}  f3 {[%clk 0:02:15]} 17. Bxf3 {[%clk 0:02:34]}  Ne5 {[%clk 0:02:16]} 18. Bg2 {[%clk 0:02:34]}  f5 {[%clk 0:02:12]} 19. f4 {[%clk 0:02:22]}  Nf7 {[%clk 0:02:11]} 20. gxf5 {[%clk 0:02:09]}  gxf5 {[%clk 0:02:11]} 21. Be3 {[%clk 0:02:08]}  Qh4 {[%clk 0:02:05]} 22. Bf2 {[%clk 0:01:55]}  Qe7 {[%clk 0:02:02]} 23. Ng3 {[%clk 0:01:50]}  Nh8 {[%clk 0:01:46]} 24. Qh5 {[%clk 0:01:32]}  Ng6 {[%clk 0:01:33]} 25. Be3 {[%clk 0:01:21]}  Qh4 {[%clk 0:01:31]} 26. exf5 {[%clk 0:01:09]}  Qxh5 {[%clk 0:01:29]} 27. Nxh5 {[%clk 0:01:10]}  Bxf5 {[%clk 0:01:25]} 28. Rb3 {[%clk 0:01:05]}  Nh4 {[%clk 0:01:18]} 29. Nxg7 {[%clk 0:01:00]}  Kxg7 {[%clk 0:01:15]} 30. Rf2 {[%clk 0:00:46]}  Kf7 {[%clk 0:01:09]} 31. Kh2 {[%clk 0:00:44]}  Nxg2 {[%clk 0:01:04]} 32. Rxg2 {[%clk 0:00:43]}  Ra1 {[%clk 0:00:59]} 33. Bd4 {[%clk 0:00:42]}  Rd1 {[%clk 0:00:55]} 34. Rg7+ {[%clk 0:00:41]}  Ke6 {[%clk 0:00:55]} 35. Rxb7 {[%clk 0:00:39]}  Bxd3 {[%clk 0:00:51]} 36. c5 {[%clk 0:00:30]}  Rg8 {[%clk 0:00:50]} 37. Rb2 {[%clk 0:00:26]}  Be4 {[%clk 0:00:48]} 38. Rg7 {[%clk 0:00:22]}  Rxg7 {[%clk 0:00:43]} 39. Bxg7 {[%clk 0:00:23]}  Rh1+ {[%clk 0:00:43]} 40. Kg3 {[%clk 0:00:24]}  Rg1+ {[%clk 0:00:44]} 41. Kh4 {[%clk 0:00:24]}  Rxg7 {[%clk 0:00:44]} 42. cxd6 {[%clk 0:00:25]}  Kxd6 {[%clk 0:00:45]} 43. Kh5 {[%clk 0:00:21]}  Rf7 {[%clk 0:00:40]} 44. Rf2 {[%clk 0:00:17]}  Ke6 {[%clk 0:00:37]} 45. h4 {[%clk 0:00:14]}  Kf5 {[%clk 0:00:37]} 46. Rf1 {[%clk 0:00:11]}  Rf6 {[%clk 0:00:36]} 47. Rf2 {[%clk 0:00:10]}  Bd5 {[%clk 0:00:37]} 0-1


[Site "https://www.chess.com"]